bitfinex/quotes_BTCUSD_20240905
["timestamp","ask_amount","ask_price","bid_price","bid_amount"]
[1725525036613,1.244179,57266.0,57265.0,0.61823]
[1725525036832,0.874932,57266.0,57265.0,0.61823]
[1725525037054,0.001815,57266.0,57265.0,0.61823]
[1725525037753,0.001815,57266.0,57265.0,0.63135103]
[1725525038169,0.001815,57266.0,57265.0,0.79197703]
[1725525038379,0.001815,57266.0,57265.0,1.14123003]
[1725525038559,0.000815,57266.0,57265.0,0.79397703]
[1725525039519,0.000815,57266.0,57265.0,0.80797703]
[1725525040211,0.000815,57266.0,57265.0,0.794856]
[1725525040464,0.000815,57266.0,57265.0,0.62023]
[1725525040701,0.000815,57266.0,57265.0,0.794856]
[1725525041821,0.000815,57266.0,57265.0,0.62023]
[1725525050923,0.000815,57266.0,57265.0,1.493362]
[1725525051349,0.000815,57266.0,57265.0,1.57196072]
[1725525051563,0.000815,57266.0,57265.0,1.493362]
[1725525051984,0.000815,57266.0,57265.0,1.6044832]
[1725525052196,0.000815,57266.0,57265.0,1.2552302]
[1725525052853,0.000815,57266.0,57265.0,1.6044832]
[1725525053096,0.000815,57266.0,57265.0,1.2552302]
[1725525053973,0.000815,57266.0,57265.0,1.1572295]
[1725525054274,0.000815,57266.0,57265.0,1.1522295]
[1725525054522,2.08620103,57267.0,57266.0,0.52387]
[1725525054523,1.88701603,57267.0,57266.0,0.52387]
[1725525054730,1.88701603,57267.0,57266.0,1.287517]
[1725525056128,1.88701603,57267.0,57266.0,1.650764]
[1725525056606,1.88701603,57267.0,57266.0,1.66388285]
[1725525057110,1.88701603,57267.0,57266.0,1.74230328]
[1725525057339,1.88701603,57267.0,57266.0,1.94760328]
[1725525057797,1.88701603,57267.0,57266.0,1.92048443]
[1725525058054,1.88701603,57267.0,57266.0,1.93448443]
[1725525058290,1.88701603,57267.0,57266.0,1.94760233]
[1725525058516,1.88701603,57267.0,57266.0,1.93360233]
[1725525058746,1.59752241,57267.0,57266.0,1.94760233]
[1725525058978,1.59752241,57267.0,57266.0,7.08069286]
[1725525059235,1.59752241,57267.0,57266.0,7.17223105]
[1725525059483,1.59752241,57267.0,57266.0,7.18623105]
[1725525059735,1.59752241,57267.0,57266.0,7.09469286]
[1725525060199,1.59752241,57267.0,57266.0,7.06669286]
[1725525060432,1.59752241,57267.0,57266.0,2.71969286]
[1725525060663,1.59752241,57267.0,57266.0,2.73281054]
[1725525061192,1.59752241,57267.0,57266.0,2.31481054]
[1725525061422,1.59752241,57267.0,57266.0,2.28281054]
[1725525063565,1.59752241,57267.0,57266.0,2.45731054]
[1725525064205,1.59752241,57267.0,57266.0,2.50953097]
[1725525065052,1.59752241,57267.0,57266.0,2.45731054]
[1725525065259,1.59752241,57267.0,57266.0,0.83443558]
[1725525065474,1.59752241,57267.0,57266.0,0.65993558]
[1725525065691,2.12138341,57267.0,57266.0,0.46863558]
[1725525065928,1.77214241,57267.0,57266.0,0.46863558]
[1725525066138,2.12138341,57267.0,57266.0,0.45463558]
[1725525066347,2.47062441,57267.0,57266.0,0.45463558]
[1725525066563,2.47062441,57267.0,57266.0,0.46863558]
[1725525066778,2.47062441,57267.0,57266.0,0.44063558]
[1725525067195,2.47062441,57267.0,57266.0,0.46863558]
[1725525067648,2.47062441,57267.0,57266.0,0.45463558]
[1725525068072,2.47062441,57267.0,57266.0,0.46863558]
[1725525068520,2.47062441,57267.0,57266.0,0.05423558]
[1725525068754,2.83986541,57267.0,57266.0,0.05423558]
[1725525069222,3.36661737,57267.0,57266.0,0.05423558]
[1725525069435,3.55291737,57267.0,57266.0,0.05423558]
[1725525069892,3.55091737,57267.0,57266.0,0.05423558]
[1725525070100,3.55091737,57267.0,57266.0,0.04023558]
[1725525070101,3.48004807,57267.0,57266.0,0.04023558]
[1725525070739,3.47804807,57267.0,57266.0,0.04023558]
[1725525070957,3.47804807,57267.0,57266.0,0.02623558]
[1725525071374,3.47804807,57267.0,57266.0,0.04023558]
[1725525071578,3.47804807,57267.0,57266.0,0.04186558]
[1725525072005,3.47804807,57267.0,57266.0,0.02963]
[1725525075148,3.18205536,57267.0,57266.0,0.02963]
[1725525081037,3.18405536,57267.0,57266.0,0.02963]
[1725525081244,3.18205536,57267.0,57266.0,0.02963]
[1725525082329,3.18405536,57267.0,57266.0,0.02963]
[1725525083943,3.18205536,57267.0,57266.0,0.02963]
[1725525084375,3.18405536,57267.0,57266.0,0.02963]
[1725525085921,2.89703333,57267.0,57266.0,0.02963]
[1725525088066,2.36149233,57267.0,57266.0,0.62033]
[1725525090179,2.21442044,57267.0,57266.0,0.62033]
[1725525092351,2.10641294,57267.0,57266.0,0.62033]
[1725525092557,1.57166098,57267.0,57266.0,0.62033]
[1725525093620,2.10641294,57267.0,57266.0,0.42063]
[1725525093831,2.20442044,57267.0,57266.0,0.42063]
[1725525094466,2.21442044,57267.0,57266.0,0.42063]
[1725525105420,1.92120237,57267.0,57266.0,0.42063]
[1725525106553,1.91120237,57267.0,57266.0,0.42063]
[1725525107208,1.92120237,57267.0,57266.0,0.42063]
[1725525107627,1.91120237,57267.0,57266.0,0.42063]
[1725525108097,1.90120237,57267.0,57266.0,0.42063]
[1725525108513,1.27844291,57267.0,57266.0,0.61853]
[1725525111745,1.27344291,57267.0,57266.0,0.61853]
[1725525114614,1.37145041,57267.0,57266.0,0.61853]
[1725525116531,1.37145041,57267.0,57266.0,0.42063]
[1725525117890,1.72069141,57267.0,57266.0,0.42063]
[1725525118124,1.55696137,57267.0,57266.0,0.42063]
[1725525118329,1.90620237,57267.0,57266.0,0.42063]
[1725525118546,1.91620237,57267.0,57266.0,0.02963]
[1725525118782,2.10780237,57267.0,57266.0,0.02963]
[1725525118988,2.45704337,57267.0,57266.0,0.02963]
[1725525119595,2.10580237,57267.0,57266.0,0.02963]
[1725525120417,2.45504337,57267.0,57266.0,0.02963]
[1725525123616,2.10580237,57267.0,57266.0,0.02963]
[1725525124241,2.45504337,57267.0,57266.0,0.02963]
[1725525124444,2.10580237,57267.0,57266.0,0.02963]
[1725525124852,2.45504337,57267.0,57266.0,0.02963]
[1725525125052,2.45704337,57267.0,57266.0,0.02963]
[1725525125476,1.91620237,57267.0,57266.0,0.40743]
[1725525134045,1.80819487,57267.0,57266.0,0.58923]
[1725525134255,1.81819487,57267.0,57266.0,0.58923]
[1725525134461,1.81819487,57267.0,57266.0,0.40743]
[1725525135085,1.91620237,57267.0,57266.0,0.40743]
[1725525142004,1.91820237,57267.0,57266.0,0.40743]
[1725525143390,2.26544337,57267.0,57266.0,0.40743]
[1725525143841,2.61468437,57267.0,57266.0,0.02963]
[1725525144064,2.91318437,57267.0,57266.0,0.02963]
[1725525144322,2.93618437,57267.0,57266.0,0.02963]
[1725525146452,2.93618437,57267.0,57266.0,0.01563]
[1725525146682,2.93618437,57267.0,57266.0,0.02963]
[1725525147124,2.93618437,57267.0,57266.0,0.01563]
[1725525147547,2.93618437,57267.0,57266.0,0.02963]
[1725525147989,2.93618437,57267.0,57266.0,0.01563]
[1725525148211,2.93618437,57267.0,57266.0,0.02963]
[1725525148843,2.93618437,57267.0,57266.0,0.00163]
[1725525149087,2.93618437,57267.0,57266.0,0.01563]
[1725525149340,2.93618437,57267.0,57266.0,0.02963]
[1725525159961,3.28542537,57267.0,57266.0,0.02963]
[1725525160389,2.93618437,57267.0,57266.0,0.02963]
[1725525160614,3.28542537,57267.0,57266.0,0.02963]
[1725525160821,2.93618437,57267.0,57266.0,0.02963]
[1725525161209,3.28542537,57267.0,57266.0,0.02963]
[1725525161415,2.93618437,57267.0,57266.0,0.02963]
[1725525161754,1.583611,57266.0,57265.0,0.00163]
[1725525161981,2.23136896,57266.0,57265.0,0.00163]
[1725525162946,2.58061596,57266.0,57265.0,0.00163]
[1725525163150,2.23136896,57266.0,57265.0,0.00163]
[1725525163405,2.23136896,57266.0,57265.0,0.01563]
[1725525163807,2.23236896,57266.0,57265.0,0.02963]
[1725525164759,2.25569809,57266.0,57265.0,0.02963]
[1725525164961,2.03205581,57266.0,57265.0,0.02963]
[1725525165314,2.20667881,57266.0,57265.0,0.02963]
[1725525165962,2.21667881,57266.0,57265.0,0.02963]
[1725525170013,2.21667881,57266.0,57265.0,0.41803]
[1725525170496,1.86743181,57266.0,57265.0,0.41803]
[1725525171234,1.90459104,57266.0,57265.0,0.41803]
[1725525173272,2.00259854,57266.0,57265.0,0.41803]
[1725525173519,1.90459104,57266.0,57265.0,0.41803]
[1725525174559,2.00259854,57266.0,57265.0,0.41803]
[1725525174984,2.00341354,57266.0,57265.0,0.41803]
[1725525175613,1.99341354,57266.0,57265.0,0.41803]
[1725525175824,2.00341354,57266.0,57265.0,0.41803]
[1725525176664,2.19701354,57266.0,57265.0,0.02963]
[1725525177322,0.01,57262.0,57261.0,0.3866]
[1725525177529,0.01,57262.0,57259.0,0.00163]
[1725525177530,0.4762485,57260.0,57259.0,0.00163]
[1725525177741,1.12404246,57260.0,57259.0,0.00163]
[1725525177948,1.12404246,57260.0,57256.0,0.00163]
[1725525177949,0.533944,57258.0,57256.0,0.00163]
[1725525178172,0.83245496,57258.0,57256.0,0.00163]
[1725525178401,2.23963896,57258.0,57256.0,0.00163]
[1725525178700,0.714835,57248.0,57240.0,0.1819]
[1725525178908,2.03642446,57248.0,57240.0,0.1819]
[1725525179157,2.50878146,57248.0,57240.0,0.1819]
[1725525179366,2.51878146,57248.0,57240.0,0.1819]
[1725525179574,2.42077396,57248.0,57240.0,0.1819]
[1725525180243,2.24097396,57248.0,57247.0,0.01264]
[1725525180453,2.33898146,57248.0,57247.0,0.01264]
[1725525181932,2.33998146,57248.0,57247.0,0.01264]
[1725525182143,2.36407223,57248.0,57247.0,0.01264]
[1725525182595,2.01471523,57248.0,57247.0,0.01264]
[1725525183469,2.36407223,57248.0,57247.0,0.01264]
[1725525184520,2.55507223,57248.0,57247.0,0.01264]
[1725525184731,1.572295,57241.0,57240.0,0.5697]
[1725525184961,1.77080596,57241.0,57240.0,0.5697]
[1725525185581,1.86881346,57241.0,57240.0,0.5697]
[1725525186501,1.86981346,57241.0,57240.0,0.5697]
[1725525187107,1.86981346,57241.0,57240.0,0.5757]
[1725525187108,1.87081346,57241.0,57240.0,0.5757]
[1725525187333,1.87081346,57241.0,57240.0,0.57733]
[1725525187785,1.89461711,57241.0,57240.0,0.57733]
[1725525189667,1.89461711,57241.0,57240.0,0.00763]
[1725525191729,1.90461711,57241.0,57240.0,0.00763]
[1725525192135,2.35401611,57241.0,57240.0,0.00763]
[1725525193484,2.54581611,57241.0,57240.0,0.00763]
[1725525195112,2.57581611,57241.0,57240.0,0.00763]
[1725525195313,2.92521511,57241.0,57240.0,0.00763]
[1725525196763,2.75051611,57241.0,57240.0,0.00763]
[1725525197018,2.92521511,57241.0,57240.0,0.00763]
[1725525198475,0.194718,57235.0,57231.0,0.5811]
[1725525198710,0.91770195,57235.0,57231.0,0.3883]
[1725525198939,2.14072795,57235.0,57231.0,0.3883]
[1725525199181,2.23873545,57235.0,57231.0,0.3883]
[1725525199876,2.23973545,57235.0,57231.0,0.3883]
[1725525200115,2.23873545,57235.0,57231.0,0.3883]
[1725525200356,2.79777145,57235.0,57228.0,0.1832]
[1725525200820,2.79677145,57235.0,57228.0,0.1832]
[1725525201436,0.0980075,57229.0,57227.0,0.3873]
[1725525201670,0.524254,57224.0,57223.0,0.595]
[1725525201924,1.77127396,57224.0,57223.0,0.595]
[1725525202215,1.223327,57221.0,57220.0,0.19]
[1725525202431,1.223453,57215.0,57214.0,0.595]
[1725525202692,1.39896396,57215.0,57214.0,0.595]
[1725525203434,0.174779,57215.0,57214.0,0.945]
[1725525203678,0.349542,57218.0,57217.0,1.095]
[1725525203679,0.524312,57218.0,57217.0,1.095]
[1725525203925,1.04936496,57218.0,57217.0,1.095]
[1725525205357,1.05036496,57218.0,57217.0,1.095]
[1725525205636,1.39990696,57218.0,57217.0,1.095]
[1725525205881,1.40090696,57218.0,57217.0,1.095]
[1725525207318,1.40090696,57218.0,57217.0,0.595]
[1725525208576,1.49791446,57218.0,57217.0,0.595]
[1725525209093,1.49891446,57218.0,57217.0,0.595]
[1725525209320,1.49691446,57218.0,57217.0,0.595]
[1725525209999,1.49791446,57218.0,57217.0,0.595]
[1725525210362,1.84745646,57218.0,57217.0,0.595]
[1725525210580,1.49891446,57218.0,57217.0,0.595]
[1725525210811,1.84845646,57218.0,57217.0,0.59663]
[1725525211299,1.84745646,57218.0,57217.0,0.59663]
[1725525211555,1.84645646,57218.0,57217.0,0.59663]
[1725525211806,1.49891446,57218.0,57217.0,0.59663]
[1725525212050,1.84745646,57218.0,57217.0,0.59663]
[1725525212300,1.49691446,57218.0,57217.0,0.59663]
[1725525212545,1.84745646,57218.0,57217.0,0.59663]
[1725525213258,1.49891446,57218.0,57217.0,0.59663]
[1725525213731,1.84845646,57218.0,57217.0,0.59663]
[1725525213980,1.49891446,57218.0,57217.0,0.59663]
[1725525214203,1.84845646,57218.0,57217.0,0.59663]
[1725525214449,1.40090696,57218.0,57217.0,0.59663]
[1725525215748,1.84845646,57218.0,57217.0,0.59663]
[1725525216959,1.84845646,57218.0,57217.0,0.00163]
[1725525217137,1.87145646,57218.0,57217.0,0.00163]
[1725525217952,1.77344896,57218.0,57217.0,0.00163]
[1725525218591,1.77344896,57218.0,57195.0,0.414]
[1725525218592,0.01,57215.0,57195.0,0.414]
[1725525218786,0.0033,57217.0,57189.0,0.17614]
[1725525218787,0.174855,57190.0,57189.0,0.17614]
[1725525219140,0.174855,57190.0,57189.0,0.60734]
[1725525219345,0.17484,57195.0,57194.0,0.9436]
[1725525219547,0.524502,57197.0,57196.0,0.4036]
[1725525219756,0.77000983,57197.0,57196.0,0.4036]
[1725525220162,0.77000983,57197.0,57196.0,0.586]
[1725525220383,1.11967783,57197.0,57196.0,0.586]
[1725525220574,1.46934583,57197.0,57196.0,0.586]
[1725525220788,1.11967783,57197.0,57196.0,0.586]
[1725525221003,1.46934583,57197.0,57196.0,0.586]
[1725525221436,1.46934583,57197.0,57196.0,0.576]
[1725525221852,1.47134583,57197.0,57196.0,0.576]
[1725525222279,1.82101383,57197.0,57196.0,0.576]
[1725525222526,1.47134583,57197.0,57196.0,0.57763]
[1725525222739,1.46934583,57197.0,57196.0,0.57763]
[1725525222974,1.81901383,57197.0,57196.0,0.57763]
[1725525223182,1.81901383,57197.0,57189.0,0.00164]
[1725525223183,1.223967,57191.0,57190.0,0.3994]
[1725525223391,1.223967,57191.0,57189.0,0.19924]
[1725525223392,0.874277,57190.0,57189.0,0.00164]
[1725525223595,1.573699,57190.0,57189.0,0.00164]
[1725525223807,1.596699,57190.0,57189.0,0.00164]
[1725525224019,1.223988,57190.0,57189.0,0.00164]
[1725525224908,1.46949583,57190.0,57189.0,0.00164]
[1725525225133,1.49249583,57190.0,57189.0,0.00164]
[1725525225343,1.76900679,57190.0,57189.0,0.00164]
[1725525225575,2.11971779,57190.0,57189.0,0.00164]
[1725525226522,2.11871779,57190.0,57189.0,0.00164]
[1725525227374,2.71493662,57190.0,57189.0,0.00164]
[1725525227579,2.36522562,57190.0,57189.0,0.00164]
[1725525227787,2.36422562,57190.0,57189.0,0.00164]
[1725525227991,2.11871779,57190.0,57189.0,0.00164]
[1725525228209,2.11971779,57190.0,57189.0,0.00164]
[1725525228824,2.46942879,57190.0,57189.0,0.00164]
[1725525229490,1.573893,57183.0,57182.0,0.39804]
[1725525229691,1.74940396,57183.0,57182.0,0.39804]
[1725525230145,2.09915796,57183.0,57182.0,0.39804]
[1725525230489,2.09915796,57183.0,57182.0,0.00164]
[1725525230736,2.12215796,57183.0,57182.0,0.00164]
[1725525230940,2.36766579,57183.0,57182.0,0.00164]
[1725525231091,2.71741979,57183.0,57182.0,0.00164]
[1725525231463,1.923779,57179.0,57178.0,0.07]
[1725525231678,2.09928996,57179.0,57178.0,0.07]
[1725525231914,2.22228996,57179.0,57178.0,0.07]
[1725525232130,2.81757579,57179.0,57178.0,0.07]
[1725525232987,2.81757579,57179.0,57170.0,0.20064]
[1725525232988,1.574221,57171.0,57170.0,0.00164]
[1725525233222,1.74973196,57171.0,57170.0,0.00164]
[1725525233465,1.84973196,57171.0,57170.0,0.00164]
[1725525234089,2.09523979,57171.0,57170.0,0.00164]
[1725525234293,2.09523979,57171.0,57170.0,0.37844]
[1725525234537,2.09623979,57171.0,57170.0,0.37844]
[1725525235367,2.09523979,57171.0,57170.0,0.37844]
[1725525235575,2.09623979,57171.0,57170.0,0.37844]
[1725525235826,2.09723979,57171.0,57170.0,0.37844]
[1725525236450,1.85173196,57171.0,57170.0,0.37844]
[1725525237157,1.40190496,57171.0,57170.0,0.56894]
[1725525237880,1.3896181,57171.0,57170.0,0.56894]
[1725525238114,1.5645311,57171.0,57170.0,0.56894]
[1725525239035,1.14451231,57171.0,57170.0,1.06894]
[1725525239559,1.224632,57160.0,57155.0,0.025]
[1725525239844,1.75003796,57160.0,57155.0,0.025]
[1725525240080,1.85003796,57160.0,57155.0,0.025]
[1725525240544,1.05024796,57160.0,57155.0,0.025]
[1725525240793,1.05024796,57160.0,57159.0,0.00764]
[1725525241275,1.05024796,57160.0,57159.0,0.00164]
[1725525241518,1.40014296,57160.0,57159.0,0.00564]
[1725525241739,1.64565079,57160.0,57159.0,0.01364]
[1725525242241,1.40114296,57160.0,57159.0,0.02564]
[1725525242469,1.40114296,57160.0,57159.0,0.62534]
[1725525243376,1.40114296,57160.0,57159.0,0.61334]
[1725525243821,1.40214296,57160.0,57159.0,0.62634]
[1725525244333,1.05224796,57160.0,57159.0,0.97634]
[1725525244833,0.876737,57160.0,57159.0,0.97634]
[1725525246041,1.226632,57160.0,57159.0,0.97634]
[1725525246279,1.40214296,57160.0,57159.0,0.97634]
[1725525248528,0.876737,57160.0,57159.0,0.97634]
[1725525249426,1.226632,57160.0,57159.0,0.97634]
[1725525249635,0.876737,57160.0,57159.0,0.97634]
[1725525249837,1.226632,57160.0,57159.0,0.97634]
[1725525251538,0.876737,57160.0,57159.0,0.97834]
[1725525251969,0.526842,57160.0,57159.0,0.98834]
[1725525252820,0.526842,57160.0,57159.0,1.23384783]
[1725525254167,0.001,57160.0,57159.0,1.22084783]
[1725525254577,0.002,57160.0,57159.0,1.23384783]
[1725525255284,0.175947,57160.0,57159.0,1.22184783]
[1725525255499,0.001,57160.0,57159.0,1.76069883]
[1725525255708,0.001,57160.0,57159.0,1.39679783]
[1725525255918,2.68602591,57161.0,57159.0,1.38379783]
[1725525256125,2.68602591,57161.0,57160.0,1.0972]
[1725525256768,2.86096991,57161.0,57160.0,1.0972]
[1725525256994,3.21085791,57161.0,57160.0,1.34270783]
[1725525257425,3.56074591,57161.0,57160.0,1.0952]
[1725525257632,3.56074591,57161.0,57160.0,1.0972]
[1725525258494,3.91063391,57161.0,57160.0,1.0952]
[1725525258711,3.91163391,57161.0,57160.0,1.1072]
[1725525259176,3.91163391,57161.0,57160.0,1.0972]
[1725525259608,3.91163391,57161.0,57160.0,1.1212]
[1725525262817,3.91163391,57161.0,57160.0,1.1112]
[1725525263056,4.43703287,57161.0,57160.0,0.526]
[1725525264959,4.43703287,57161.0,57160.0,0.026]
[1725525266886,4.78692087,57161.0,57160.0,0.026]
[1725525268976,4.88692087,57161.0,57160.0,0.026]
[1725525269204,5.25980887,57161.0,57160.0,0.026]
[1725525269443,5.64370887,57161.0,57160.0,0.026]
[1725525269911,5.66798415,57161.0,57160.0,0.026]
[1725525270112,5.66798415,57161.0,57160.0,0.012]
[1725525270370,5.85048415,57161.0,57160.0,0.022]
[1725525270788,4.56130815,57161.0,57160.0,0.022]
[1725525271183,4.56030815,57161.0,57160.0,0.01]
[1725525271613,4.56130815,57161.0,57160.0,0.019]
[1725525272774,4.91119615,57161.0,57160.0,0.019]
[1725525273889,5.83078415,57161.0,57160.0,0.019]
[1725525274138,5.86378415,57161.0,57160.0,0.019]
[1725525274381,5.87378415,57161.0,57160.0,0.019]
[1725525275249,5.58210586,57161.0,57160.0,0.019]
[1725525276312,5.62428479,57161.0,57160.0,0.019]
[1725525276522,5.57210586,57161.0,57160.0,0.019]
[1725525276732,5.58210586,57161.0,57160.0,0.019]
[1725525276936,5.57210586,57161.0,57160.0,0.019]
[1725525277136,5.58210586,57161.0,57160.0,0.019]
[1725525277334,5.57210586,57161.0,57160.0,0.019]
[1725525277561,5.56210586,57161.0,57160.0,0.019]
[1725525279579,4.99240586,57161.0,57160.0,0.019]
[1725525282751,4.99240586,57161.0,57160.0,0.020632]
[1725525283140,4.72485737,57161.0,57160.0,0.020632]
[1725525283901,4.74120022,57161.0,57160.0,0.020632]
[1725525284961,4.76734846,57161.0,57160.0,0.020632]
[1725525288117,4.76734846,57161.0,57149.0,0.2022685]
[1725525288118,2.294714,57150.0,57149.0,0.0111685]
[1725525288315,2.38826788,57150.0,57149.0,0.0111685]
[1725525288491,2.48826788,57150.0,57149.0,0.0111685]
[1725525288689,2.51126788,57150.0,57149.0,0.0111685]
[1725525289424,2.51126077,57150.0,57149.0,0.0111685]
[1725525289621,2.51226077,57150.0,57149.0,0.0231685]
[1725525289849,3.09076077,57150.0,57149.0,0.0231685]
[1725525290000,3.09076077,57150.0,57149.0,0.0371685]
[1725525291991,3.62501677,57150.0,57149.0,0.0371685]
[1725525292194,0.350023,57139.0,57138.0,0.00164]
[1725525292397,1.09305194,57139.0,57138.0,0.00164]
[1725525292605,1.44307974,57139.0,57138.0,0.00164]
[1725525292805,1.79310274,57139.0,57138.0,0.00164]
[1725525293318,2.56930274,57139.0,57138.0,0.00164]
[1725525293512,2.16261057,57139.0,57138.0,0.00664]
[1725525294772,2.52363357,57139.0,57138.0,0.00664]
[1725525295187,2.52163357,57139.0,57138.0,0.00164]
[1725525295392,2.53363357,57139.0,57138.0,0.00164]
[1725525295604,2.17361057,57139.0,57138.0,0.00164]
[1725525296235,2.16361057,57139.0,57138.0,0.00164]
[1725525297745,2.18783207,57139.0,57138.0,0.00164]
[1725525298371,2.18782841,57139.0,57138.0,0.00164]
[1725525298994,2.18782846,57139.0,57138.0,0.00164]
[1725525299202,2.14534329,57139.0,57138.0,0.00164]
[1725525299410,2.1878277,57139.0,57138.0,0.00164]
[1725525300470,2.5378507,57139.0,57138.0,0.00164]
[1725525300680,2.1878277,57139.0,57138.0,0.00164]
[1725525301164,2.5378507,57139.0,57138.0,0.00164]
[1725525301378,2.49536629,57139.0,57138.0,0.00164]
[1725525301579,2.53784354,57139.0,57138.0,0.00164]
[1725525302000,3.12954354,57139.0,57138.0,0.00164]
[1725525302435,3.14954354,57139.0,57138.0,0.00164]
[1725525302863,3.49956654,57139.0,57138.0,0.00164]
[1725525303942,2.17482054,57139.0,57138.0,0.00164]
[1725525304179,1.91931271,57139.0,57138.0,0.00164]
[1725525304426,1.91831271,57139.0,57138.0,0.00164]
[1725525304673,1.91731271,57139.0,57138.0,0.00164]
[1725525304845,1.91831271,57139.0,57138.0,0.00164]
[1725525305304,2.29133571,57139.0,57138.0,0.00164]
[1725525305738,2.53684354,57139.0,57138.0,0.00164]
[1725525306987,2.16068069,57139.0,57138.0,0.00164]
[1725525307413,2.14434329,57139.0,57138.0,0.00164]
[1725525307628,2.49436629,57139.0,57138.0,0.00164]
[1725525307839,2.51070623,57139.0,57138.0,0.00164]
[1725525311709,2.49436629,57139.0,57138.0,0.00164]
[1725525313034,2.51070467,57139.0,57138.0,0.00164]
[1725525313476,2.52704161,57139.0,57138.0,0.00164]
[1725525313695,2.51070467,57139.0,57138.0,0.00164]
[1725525314521,2.5270405,57139.0,57138.0,0.00164]
[1725525314932,2.51070467,57139.0,57138.0,0.00164]
[1725525315106,2.52704054,57139.0,57138.0,0.00164]
[1725525315558,2.51070467,57139.0,57138.0,0.00164]
[1725525315755,2.51070209,57139.0,57138.0,0.00164]
[1725525317345,2.51069618,57139.0,57138.0,0.00164]
[1725525317781,2.51069521,57139.0,57138.0,0.00164]
[1725525318221,2.49436629,57139.0,57138.0,0.00164]
[1725525318465,2.5106951,57139.0,57138.0,0.00164]
[1725525326990,2.8607181,57139.0,57138.0,0.00164]
[1725525327423,2.5106951,57139.0,57138.0,0.00164]
[1725525327651,3.4488181,57139.0,57138.0,0.00164]
[1725525328121,2.5106951,57139.0,57138.0,0.00164]
[1725525328331,2.49436629,57139.0,57138.0,0.00164]
[1725525328541,2.86072002,57139.0,57138.0,0.00164]
[1725525328753,2.51069702,57139.0,57138.0,0.00164]
[1725525331461,2.5106972,57139.0,57138.0,0.00164]
[1725525331896,2.51751666,57139.0,57138.0,0.00164]
[1725525332142,2.37050105,57139.0,57138.0,0.00164]
[1725525332350,2.37050105,57139.0,57131.0,0.00164]
[1725525332351,0.525099,57132.0,57131.0,0.00164]
[1725525332567,1.51707287,57132.0,57131.0,0.00164]
[1725525332776,2.59027087,57132.0,57131.0,0.00164]
[1725525332991,2.59233671,57132.0,57131.0,0.00164]
[1725525333412,2.64443403,57132.0,57131.0,0.00164]
[1725525333631,2.74392625,57132.0,57131.0,0.00264]
[1725525334090,2.64543403,57132.0,57131.0,0.00164]
[1725525334351,2.59233671,57132.0,57131.0,0.00164]
[1725525334558,2.59433564,57132.0,57131.0,0.00264]
[1725525334975,2.84062362,57132.0,57131.0,0.00264]
[1725525335206,2.89275788,57132.0,57131.0,0.00264]
[1725525335415,2.8974364,57132.0,57131.0,0.00264]
[1725525335654,2.1743044,57132.0,57131.0,0.58164]
[1725525335865,1.8758682,57132.0,57131.0,0.58164]
[1725525336290,1.5258022,57132.0,57131.0,0.58164]
[1725525336515,1.51032758,57132.0,57131.0,0.58164]
[1725525336719,1.52665904,57132.0,57131.0,0.58164]
[1725525337739,1.52565904,57132.0,57131.0,0.58064]
[1725525338038,1.52465904,57132.0,57131.0,0.58064]
[1725525338269,1.52665904,57132.0,57131.0,0.58164]
[1725525338478,1.55101913,57132.0,57131.0,0.58164]
[1725525339347,1.10095313,57132.0,57131.0,0.58164]
[1725525339624,1.10095313,57132.0,57131.0,0.58364]
[1725525340270,1.45001913,57132.0,57131.0,0.58264]
[1725525340476,1.38344877,57132.0,57131.0,0.59264]
[1725525340678,1.36711731,57132.0,57131.0,0.59464]
[1725525341104,1.01805131,57132.0,57131.0,0.59564]
[1725525341310,1.36811731,57132.0,57131.0,0.59564]
[1725525341733,0.64362522,57132.0,57131.0,0.59564]
[1725525341941,0.99369122,57132.0,57131.0,0.59564]
[1725525342159,0.99744905,57132.0,57131.0,0.59564]
[1725525342367,0.99744905,57132.0,57131.0,0.59364]
[1725525342574,0.99744905,57132.0,57131.0,0.59564]
[1725525342991,0.71395341,57132.0,57131.0,0.59564]
[1725525343201,0.01334345,57132.0,57131.0,1.37703598]
[1725525343421,2.12679913,57133.0,57132.0,1.120099]
[1725525343627,2.12679913,57133.0,57132.0,1.480165]
[1725525343628,1.92679913,57133.0,57132.0,1.480165]
[1725525343836,1.31019913,57133.0,57132.0,1.830265]
[1725525344039,0.91019913,57133.0,57132.0,1.66891743]
[1725525344252,0.90409913,57133.0,57132.0,1.88373058]
[1725525344464,2.9692,57134.0,57133.0,0.54709]
[1725525344670,2.9692,57134.0,57133.0,2.03896312]
[1725525344884,2.4825,57134.0,57133.0,2.05672312]
[1725525345090,2.4825,57134.0,57133.0,7.69787288]
[1725525345298,2.4825,57134.0,57133.0,4.65387288]
[1725525345497,2.4825,57134.0,57133.0,4.18787288]
[1725525345951,2.4835,57134.0,57133.0,4.20187288]
[1725525346171,2.48695363,57134.0,57133.0,5.96087288]
[1725525346389,2.48595363,57134.0,57133.0,5.99923902]
[1725525347120,2.48595363,57134.0,57133.0,6.01323902]
[1725525347340,2.48595363,57134.0,57133.0,5.96087288]
[1725525347769,2.48695363,57134.0,57133.0,4.8428714]
[1725525348825,2.48695363,57134.0,57133.0,3.7358114]
[1725525349028,2.48695363,57134.0,57133.0,3.0308114]
[1725525349823,2.48695363,57134.0,57133.0,2.8298114]
[1725525350026,2.48695363,57134.0,57133.0,2.28766312]
[1725525351091,2.4937004,57134.0,57133.0,2.28766312]
[1725525352586,2.25206834,57134.0,57133.0,1.93760312]
[1725525353777,2.25206834,57134.0,57133.0,2.28766312]
[1725525357297,2.25106834,57134.0,57133.0,2.26166312]
[1725525357765,2.25206834,57134.0,57133.0,2.28766312]
[1725525357982,2.25206834,57134.0,57133.0,2.28929512]
[1725525358138,2.25106834,57134.0,57133.0,2.27729512]
[1725525358339,2.25206834,57134.0,57133.0,2.28929512]
[1725525358749,2.25288434,57134.0,57133.0,2.28929512]
[1725525359128,2.25288434,57134.0,57133.0,2.27529512]
[1725525359534,2.25288434,57134.0,57133.0,2.28929512]
[1725525360926,2.25288434,57134.0,57133.0,2.42551296]
[1725525361821,2.25288434,57134.0,57133.0,2.07545296]
[1725525362072,2.25288434,57134.0,57133.0,1.829782]